[Event "Titled Tuesday Blitz June 22 2021"]
[White "Petriashvili, Nikoloz"]
[Black "Jones, Gawain C B"]
[WhiteFideId "13611216"]
[BlackFideId "409561"]
[WhiteElo "2430"]
[BlackElo "2657"]
[Result "1-0"]
[Round "05"]
[TimeControl "180+1"]
[Date "2021.06.22"]
[WhiteClock "0:00:14"]
[BlackClock "0:00:05"]

1. d4 {[%clk 0:03:00]}  Nf6 {[%clk 0:02:52]} 2. c4 {[%clk 0:03:00]}  g6 {[%clk 0:02:52]} 3. Nf3 {[%clk 0:03:01]}  Bg7 {[%clk 0:02:53]} 4. g3 {[%clk 0:03:01]}  c5 {[%clk 0:02:52]} 5. Bg2 {[%clk 0:03:02]}  O-O {[%clk 0:02:52]} 6. O-O {[%clk 0:03:02]}  d6 {[%clk 0:02:53]} 7. Nc3 {[%clk 0:03:02]}  Nc6 {[%clk 0:02:52]} 8. d5 {[%clk 0:03:02]}  Na5 {[%clk 0:02:52]} 9. Nd2 {[%clk 0:03:03]}  a6 {[%clk 0:02:53]} 10. Qc2 {[%clk 0:03:03]}  Re8 {[%clk 0:02:49]} 11. b3 {[%clk 0:03:01]}  e6 {[%clk 0:02:48]} 12. dxe6 {[%clk 0:03:01]}  Bxe6 {[%clk 0:02:47]} 13. Bb2 {[%clk 0:03:01]}  Nc6 {[%clk 0:02:46]} 14. Nde4 {[%clk 0:02:34]}  Nxe4 {[%clk 0:02:33]} 15. Nxe4 {[%clk 0:02:30]}  Nd4 {[%clk 0:02:33]} 16. Qd2 {[%clk 0:02:18]}  Bg4 {[%clk 0:02:11]} 17. Rfe1 {[%clk 0:01:57]}  b5 {[%clk 0:02:11]} 18. Rac1 {[%clk 0:01:23]}  bxc4 {[%clk 0:02:07]} 19. Bxd4 {[%clk 0:01:19]}  cxd4 {[%clk 0:01:56]} 20. bxc4 {[%clk 0:01:13]}  Rb8 {[%clk 0:01:52]} 21. c5 {[%clk 0:01:12]}  dxc5 {[%clk 0:01:49]} 22. Nxc5 {[%clk 0:01:13]}  Qd6 {[%clk 0:01:40]} 23. Nd3 {[%clk 0:01:12]}  Re7 {[%clk 0:01:37]} 24. Bf3 {[%clk 0:01:12]}  Bxf3 {[%clk 0:01:32]} 25. exf3 {[%clk 0:01:12]}  h5 {[%clk 0:01:32]} 26. Rxe7 {[%clk 0:01:11]}  Qxe7 {[%clk 0:01:33]} 27. h4 {[%clk 0:01:05]}  Qe6 {[%clk 0:01:30]} 28. Kg2 {[%clk 0:01:02]}  Qd5 {[%clk 0:01:27]} 29. Rc5 {[%clk 0:01:01]}  Qd6 {[%clk 0:01:25]} 30. Qc2 {[%clk 0:01:00]}  Kh7 {[%clk 0:01:24]} 31. Rc7 {[%clk 0:00:58]}  Qd5 {[%clk 0:01:20]} 32. Nf4 {[%clk 0:00:53]}  d3 {[%clk 0:01:16]} 33. Nxd5 {[%clk 0:00:45]}  dxc2 {[%clk 0:01:16]} 34. Rxc2 {[%clk 0:00:46]}  Rb5 {[%clk 0:01:11]} 35. Ne3 {[%clk 0:00:46]}  Bd4 {[%clk 0:01:08]} 36. f4 {[%clk 0:00:41]}  Bxe3 {[%clk 0:00:58]} 37. fxe3 {[%clk 0:00:42]}  f5 {[%clk 0:00:59]} 38. Kf3 {[%clk 0:00:40]}  Ra5 {[%clk 0:00:59]} 39. Rb2 {[%clk 0:00:40]}  Kg7 {[%clk 0:00:58]} 40. Ke2 {[%clk 0:00:38]}  Ra3 {[%clk 0:00:58]} 41. Rd2 {[%clk 0:00:36]}  Kf6 {[%clk 0:00:58]} 42. Kf3 {[%clk 0:00:33]}  Ke6 {[%clk 0:00:58]} 43. Rc2 {[%clk 0:00:32]}  Kd7 {[%clk 0:00:53]} 44. Rb2 {[%clk 0:00:32]}  Kc7 {[%clk 0:00:48]} 45. Rd2 {[%clk 0:00:31]}  Ra4 {[%clk 0:00:43]} 46. Kf2 {[%clk 0:00:26]}  Ra3 {[%clk 0:00:43]} 47. Ke2 {[%clk 0:00:27]}  Kc6 {[%clk 0:00:36]} 48. Rc2+ {[%clk 0:00:23]}  Kd7 {[%clk 0:00:34]} 49. Rb2 {[%clk 0:00:23]}  Ke6 {[%clk 0:00:29]} 50. Kf3 {[%clk 0:00:20]}  Kf7 {[%clk 0:00:27]} 51. Re2 {[%clk 0:00:17]}  Ke6 {[%clk 0:00:27]} 52. Rf2 {[%clk 0:00:17]}  Rc3 {[%clk 0:00:24]} 53. Rb2 {[%clk 0:00:16]}  Ra3 {[%clk 0:00:24]} 54. Kf2 {[%clk 0:00:16]}  Ke7 {[%clk 0:00:23]} 55. Ke2 {[%clk 0:00:15]}  a5 {[%clk 0:00:22]} 56. Kf2 {[%clk 0:00:15]}  Kf7 {[%clk 0:00:22]} 57. Re2 {[%clk 0:00:16]}  Kf6 {[%clk 0:00:21]} 58. Ke1 {[%clk 0:00:16]}  Ke6 {[%clk 0:00:21]} 59. Kf2 {[%clk 0:00:16]}  Kd6 {[%clk 0:00:19]} 60. Rd2+ {[%clk 0:00:16]}  Kc5 {[%clk 0:00:16]} 61. Kf3 {[%clk 0:00:16]}  Kc6 {[%clk 0:00:16]} 62. Rd8 {[%clk 0:00:16]}  Rxa2 {[%clk 0:00:16]} 63. Rg8 {[%clk 0:00:17]}  a4 {[%clk 0:00:11]} 64. Rxg6+ {[%clk 0:00:17]}  Kb5 {[%clk 0:00:10]} 65. Rg5 {[%clk 0:00:17]}  Rc2 {[%clk 0:00:10]} 66. Rxh5 {[%clk 0:00:18]}  Rc5 {[%clk 0:00:04]} 67. Rh8 {[%clk 0:00:18]}  a3 {[%clk 0:00:05]} 68. Ra8 {[%clk 0:00:13]}  Kb4 {[%clk 0:00:05]} 69. h5 {[%clk 0:00:12]}  Ra5 {[%clk 0:00:05]} 70. Rb8+ {[%clk 0:00:12]}  Kc3 {[%clk 0:00:05]} 71. h6 {[%clk 0:00:10]}  a2 {[%clk 0:00:05]} 72. h7 {[%clk 0:00:10]}  a1=Q {[%clk 0:00:02]} 73. h8=Q+ {[%clk 0:00:10]}  Kd2 {[%clk 0:00:03]} 74. Rd8+ {[%clk 0:00:07]}  Kc2 {[%clk 0:00:03]} 75. Qxa1 {[%clk 0:00:07]}  Rxa1 {[%clk 0:00:03]} 76. Rd5 {[%clk 0:00:08]}  Rf1+ {[%clk 0:00:03]} 77. Ke2 {[%clk 0:00:07]}  Rg1 {[%clk 0:00:03]} 78. Kf2 {[%clk 0:00:08]}  Ra1 {[%clk 0:00:03]} 79. Rxf5 {[%clk 0:00:08]}  Kd3 {[%clk 0:00:03]} 80. Rd5+ {[%clk 0:00:08]}  Ke4 {[%clk 0:00:04]} 81. Re5+ {[%clk 0:00:09]}  Kd3 {[%clk 0:00:04]} 82. g4 {[%clk 0:00:10]}  Ra2+ {[%clk 0:00:05]} 83. Kf3 {[%clk 0:00:10]}  Ra1 {[%clk 0:00:04]} 84. g5 {[%clk 0:00:11]}  Rf1+ {[%clk 0:00:04]} 85. Kg4 {[%clk 0:00:12]}  Rg1+ {[%clk 0:00:05]} 86. Kf5 {[%clk 0:00:12]}  Ra1 {[%clk 0:00:05]} 87. Kf6 {[%clk 0:00:13]}  Ra8 {[%clk 0:00:06]} 88. g6 {[%clk 0:00:13]}  Ra6+ {[%clk 0:00:06]} 89. Kg5 {[%clk 0:00:13]}  Ra8 {[%clk 0:00:06]} 90. f5 {[%clk 0:00:13]}  Ke2 {[%clk 0:00:06]} 91. f6 {[%clk 0:00:14]}  Kf3 {[%clk 0:00:07]} 92. f7 {[%clk 0:00:14]}  Rb8 {[%clk 0:00:04]} 93. g7 {[%clk 0:00:14]}  Kg3 {[%clk 0:00:05]} 94. f8=Q {[%clk 0:00:14]} 1-0


[Site "https://www.chess.com"]

[Event "Titled Tuesday Blitz June 22 2021"]
[White "Rustemov, Alexander"]
[Black "Miszler, Levente"]
[WhiteFideId "4119002"]
[BlackFideId "763276"]
[WhiteElo "2790"]
[BlackElo "1967"]
[Result "1-0"]
[Round "05"]
[TimeControl "180+1"]
[Date "2021.06.22"]
[WhiteClock "0:02:16"]
[BlackClock "0:01:12"]

1. d4 {[%clk 0:03:00]}  Nf6 {[%clk 0:02:58]} 2. c4 {[%clk 0:03:00]}  g6 {[%clk 0:02:56]} 3. g3 {[%clk 0:02:59]}  Bg7 {[%clk 0:02:56]} 4. Bg2 {[%clk 0:03:00]}  O-O {[%clk 0:02:56]} 5. Nc3 {[%clk 0:02:59]}  d6 {[%clk 0:02:56]} 6. Nf3 {[%clk 0:02:58]}  Nbd7 {[%clk 0:02:57]} 7. d5 {[%clk 0:02:57]}  e5 {[%clk 0:02:53]} 8. dxe6 {[%clk 0:02:56]}  fxe6 {[%clk 0:02:53]} 9. Qc2 {[%clk 0:02:55]}  e5 {[%clk 0:02:48]} 10. Be3 {[%clk 0:02:46]}  Qe7 {[%clk 0:02:20]} 11. O-O {[%clk 0:02:42]}  Ng4 {[%clk 0:01:50]} 12. Bg5 {[%clk 0:02:40]}  Ndf6 {[%clk 0:01:48]} 13. h3 {[%clk 0:02:36]}  Nh6 {[%clk 0:01:28]} 14. Nd5 {[%clk 0:02:35]}  Qe6 {[%clk 0:01:23]} 15. Nxc7 {[%clk 0:02:22]}  Qf7 {[%clk 0:01:18]} 16. Nxa8 {[%clk 0:02:21]}  Bf5 {[%clk 0:01:17]} 17. Qc1 {[%clk 0:02:20]}  e4 {[%clk 0:01:12]} 18. Nh4 {[%clk 0:02:16]} 1-0


[Site "https://www.chess.com"]

[Event "Titled Tuesday Blitz June 22 2021"]
[White "Saucey, Michel"]
[Black "Mirzoev, Azer"]
[WhiteFideId "601845"]
[BlackFideId "13400304"]
[WhiteElo "2253"]
[BlackElo "2525"]
[Result "0-1"]
[Round "05"]
[TimeControl "180+1"]
[Date "2021.06.22"]
[WhiteClock "0:00:01"]
[BlackClock "0:01:00"]

1. e4 {[%clk 0:03:00]}  c6 {[%clk 0:03:00]} 2. d4 {[%clk 0:02:59]}  d5 {[%clk 0:03:01]} 3. Nc3 {[%clk 0:02:58]}  dxe4 {[%clk 0:03:00]} 4. Nxe4 {[%clk 0:02:59]}  Bf5 {[%clk 0:03:01]} 5. Ng3 {[%clk 0:02:59]}  Bg6 {[%clk 0:03:01]} 6. h4 {[%clk 0:02:57]}  h6 {[%clk 0:03:02]} 7. h5 {[%clk 0:02:57]}  Bh7 {[%clk 0:03:01]} 8. Nf3 {[%clk 0:02:57]}  e6 {[%clk 0:03:01]} 9. Bd3 {[%clk 0:02:58]}  Bxd3 {[%clk 0:03:00]} 10. Qxd3 {[%clk 0:02:59]}  c5 {[%clk 0:03:01]} 11. Be3 {[%clk 0:02:37]}  Qa5+ {[%clk 0:02:58]} 12. Bd2 {[%clk 0:02:33]}  Qa6 {[%clk 0:02:57]} 13. Qe3 {[%clk 0:02:12]}  cxd4 {[%clk 0:02:55]} 14. Nxd4 {[%clk 0:02:13]}  Nf6 {[%clk 0:02:54]} 15. O-O-O {[%clk 0:02:05]}  Qxa2 {[%clk 0:02:45]} 16. Nb3 {[%clk 0:02:02]}  Nc6 {[%clk 0:02:37]} 17. Ne4 {[%clk 0:01:55]}  Nd5 {[%clk 0:02:31]} 18. Qg3 {[%clk 0:01:41]}  O-O-O {[%clk 0:02:26]} 19. Be3 {[%clk 0:01:37]}  f5 {[%clk 0:02:01]} 20. Nc3 {[%clk 0:00:45]}  Nxc3 {[%clk 0:01:57]} 21. Rxd8+ {[%clk 0:00:46]}  Nxd8 {[%clk 0:01:57]} 22. bxc3 {[%clk 0:00:47]}  Ba3+ {[%clk 0:01:52]} 23. Kd2 {[%clk 0:00:47]}  Nc6 {[%clk 0:01:39]} 24. Nd4 {[%clk 0:00:04]}  Rd8 {[%clk 0:01:36]} 25. Ke2 {[%clk 0:00:02]}  Nxd4+ {[%clk 0:01:30]} 26. cxd4 {[%clk 0:00:02]}  Qxc2+ {[%clk 0:01:28]} 27. Kf3 {[%clk 0:00:03]}  Qe4+ {[%clk 0:01:27]} 28. Ke2 {[%clk 0:00:03]}  Qg4+ {[%clk 0:01:25]} 29. Qxg4 {[%clk 0:00:03]}  fxg4 {[%clk 0:01:26]} 30. Rb1 {[%clk 0:00:02]}  Bd6 {[%clk 0:01:22]} 31. g3 {[%clk 0:00:02]}  b6 {[%clk 0:01:21]} 32. Ra1 {[%clk 0:00:01]}  Kb7 {[%clk 0:01:21]} 33. Rb1 {[%clk 0:00:01]}  Rc8 {[%clk 0:01:19]} 34. Rb2 {[%clk 0:00:01]}  Rc4 {[%clk 0:01:12]} 35. Rd2 {[%clk 0:00:01]}  a5 {[%clk 0:01:11]} 36. d5 {[%clk 0:00:01]}  e5 {[%clk 0:01:11]} 37. Rd3 {[%clk 0:00:01]}  a4 {[%clk 0:01:09]} 38. Rd2 {[%clk 0:00:01]}  b5 {[%clk 0:01:09]} 39. Rb2 {[%clk 0:00:01]}  b4 {[%clk 0:01:08]} 40. Kd3 {[%clk 0:00:01]}  Rc3+ {[%clk 0:01:08]} 41. Ke4 {[%clk 0:00:01]}  a3 {[%clk 0:01:07]} 42. Rb1 {[%clk 0:00:01]}  a2 {[%clk 0:01:04]} 43. Ra1 {[%clk 0:00:02]}  Rc2 {[%clk 0:01:04]} 44. Kf5 {[%clk 0:00:01]}  b3 {[%clk 0:01:04]} 45. Bc1 {[%clk 0:00:01]}  Rxc1 {[%clk 0:01:00]} 46. Rxc1 {[%clk 0:00:01]}  b2 {[%clk 0:01:00]} 0-1


[Site "https://www.chess.com"]

[Event "Titled Tuesday Blitz June 22 2021"]
[White "Senft, Sean"]
[Black "Srihari L R"]
[WhiteFideId "2044960"]
[BlackFideId "46617116"]
[WhiteElo "1881"]
[BlackElo "2121"]
[Result "0-1"]
[Round "05"]
[TimeControl "180+1"]
[Date "2021.06.22"]
[WhiteClock "0:01:25"]
[BlackClock "0:01:46"]

1. d4 {[%clk 0:03:00]}  d6 {[%clk 0:02:50]} 2. c4 {[%clk 0:03:01]}  e5 {[%clk 0:02:50]} 3. d5 {[%clk 0:03:00]}  g6 {[%clk 0:02:49]} 4. e4 {[%clk 0:03:00]}  Bg7 {[%clk 0:02:49]} 5. Nc3 {[%clk 0:03:00]}  Ne7 {[%clk 0:02:49]} 6. f4 {[%clk 0:03:00]}  O-O {[%clk 0:02:47]} 7. Nf3 {[%clk 0:03:00]}  Nd7 {[%clk 0:02:47]} 8. fxe5 {[%clk 0:02:51]}  Nxe5 {[%clk 0:02:46]} 9. Be2 {[%clk 0:02:50]}  f5 {[%clk 0:02:45]} 10. Bg5 {[%clk 0:02:46]}  h6 {[%clk 0:02:41]} 11. Bxe7 {[%clk 0:02:40]}  Qxe7 {[%clk 0:02:41]} 12. exf5 {[%clk 0:02:37]}  Nxf3+ {[%clk 0:02:35]} 13. gxf3 {[%clk 0:02:36]}  Qh4+ {[%clk 0:02:34]} 14. Kd2 {[%clk 0:02:35]}  Bxf5 {[%clk 0:02:32]} 15. Qg1 {[%clk 0:02:15]}  Rae8 {[%clk 0:02:18]} 16. Qg3 {[%clk 0:01:53]}  Qd4+ {[%clk 0:02:12]} 17. Ke1 {[%clk 0:01:35]}  Qxc4 {[%clk 0:01:55]} 18. Kf1 {[%clk 0:01:32]}  Bd3 {[%clk 0:01:47]} 19. Bxd3 {[%clk 0:01:29]}  Qxd3+ {[%clk 0:01:48]} 20. Kg2 {[%clk 0:01:28]}  Bxc3 {[%clk 0:01:47]} 21. bxc3 {[%clk 0:01:29]}  Re2+ {[%clk 0:01:47]} 22. Kh3 {[%clk 0:01:25]}  Rxf3 {[%clk 0:01:46]} 0-1


[Site "https://www.chess.com"]

[Event "Titled Tuesday Blitz June 22 2021"]
[White "Shapkin, Anatoliy"]
[Black "Real De Azua, Ernesto"]
[WhiteFideId "34108332"]
[BlackFideId "108154"]
[WhiteElo "2223"]
[BlackElo "2476"]
[Result "0-1"]
[Round "05"]
[TimeControl "180+1"]
[Date "2021.06.22"]
[WhiteClock "0:00:16"]
[BlackClock "0:00:17"]

1. d4 {[%clk 0:02:54]}  Nf6 {[%clk 0:02:55]} 2. c4 {[%clk 0:02:54]}  e6 {[%clk 0:02:53]} 3. g3 {[%clk 0:02:54]}  c5 {[%clk 0:02:51]} 4. d5 {[%clk 0:02:54]}  exd5 {[%clk 0:02:51]} 5. cxd5 {[%clk 0:02:55]}  d6 {[%clk 0:02:52]} 6. Nc3 {[%clk 0:02:55]}  g6 {[%clk 0:02:52]} 7. Nf3 {[%clk 0:02:55]}  Bg7 {[%clk 0:02:52]} 8. Bg2 {[%clk 0:02:56]}  O-O {[%clk 0:02:52]} 9. O-O {[%clk 0:02:56]}  Re8 {[%clk 0:02:48]} 10. Nd2 {[%clk 0:02:55]}  Nbd7 {[%clk 0:02:34]} 11. a4 {[%clk 0:02:53]}  Nh5 {[%clk 0:02:33]} 12. h3 {[%clk 0:02:52]}  f5 {[%clk 0:02:26]} 13. Kh2 {[%clk 0:02:14]}  Nhf6 {[%clk 0:01:42]} 14. e4 {[%clk 0:02:04]}  Ne5 {[%clk 0:01:37]} 15. f4 {[%clk 0:01:56]}  Nd3 {[%clk 0:01:34]} 16. Nc4 {[%clk 0:01:53]}  fxe4 {[%clk 0:01:20]} 17. Nxe4 {[%clk 0:01:48]}  Nxc1 {[%clk 0:01:06]} 18. Nexd6 {[%clk 0:01:34]}  Ne2 {[%clk 0:00:21]} 19. Nxe8 {[%clk 0:01:32]}  Qxe8 {[%clk 0:00:22]} 20. Re1 {[%clk 0:01:27]}  Ng4+ {[%clk 0:00:22]} 21. hxg4 {[%clk 0:01:20]}  Bxg4 {[%clk 0:00:23]} 22. Qd3 {[%clk 0:01:09]}  g5 {[%clk 0:00:20]} 23. Be4 {[%clk 0:00:23]}  Qh5+ {[%clk 0:00:18]} 24. Kg2 {[%clk 0:00:23]}  Qh3+ {[%clk 0:00:17]} 25. Kf2 {[%clk 0:00:24]}  Bd4+ {[%clk 0:00:17]} 26. Ne3 {[%clk 0:00:16]}  Qxg3+ {[%clk 0:00:16]} 27. Kf1 {[%clk 0:00:16]}  Qg1# {[%clk 0:00:17]} 0-1


[Site "https://www.chess.com"]

[Event "Titled Tuesday Blitz June 22 2021"]
[White "Shevchenko, Kirill"]
[Black "Lomasov, Semyon"]
[WhiteFideId "14129574"]
[BlackFideId "24164879"]
[WhiteElo "2569"]
[BlackElo "2445"]
[Result "1/2-1/2"]
[Round "05"]
[TimeControl "180+1"]
[Date "2021.06.22"]
[WhiteClock "0:00:07"]
[BlackClock "0:00:13"]

1. e4 {[%clk 0:03:00]}  e6 {[%clk 0:02:59]} 2. d3 {[%clk 0:02:53]}  d5 {[%clk 0:02:59]} 3. Nd2 {[%clk 0:02:54]}  Nf6 {[%clk 0:03:00]} 4. Ngf3 {[%clk 0:02:54]}  g6 {[%clk 0:03:00]} 5. b3 {[%clk 0:02:45]}  Bg7 {[%clk 0:03:00]} 6. Bb2 {[%clk 0:02:46]}  O-O {[%clk 0:03:00]} 7. g3 {[%clk 0:02:46]}  a5 {[%clk 0:02:59]} 8. a3 {[%clk 0:02:45]}  c5 {[%clk 0:02:59]} 9. Bg2 {[%clk 0:02:41]}  Nc6 {[%clk 0:02:58]} 10. O-O {[%clk 0:02:38]}  b6 {[%clk 0:02:48]} 11. Re1 {[%clk 0:02:27]}  Bb7 {[%clk 0:02:49]} 12. Ne5 {[%clk 0:01:58]}  a4 {[%clk 0:02:20]} 13. bxa4 {[%clk 0:01:19]}  dxe4 {[%clk 0:02:14]} 14. Nxc6 {[%clk 0:01:14]}  Bxc6 {[%clk 0:02:15]} 15. Nxe4 {[%clk 0:01:15]}  Nxe4 {[%clk 0:02:02]} 16. Bxg7 {[%clk 0:01:10]}  Kxg7 {[%clk 0:02:03]} 17. Bxe4 {[%clk 0:01:09]}  Qc7 {[%clk 0:01:55]} 18. c3 {[%clk 0:00:44]}  Rxa4 {[%clk 0:01:51]} 19. Qb3 {[%clk 0:00:42]}  Rfa8 {[%clk 0:01:50]} 20. Bxc6 {[%clk 0:00:35]}  Qxc6 {[%clk 0:01:51]} 21. c4 {[%clk 0:00:33]}  Qd6 {[%clk 0:01:47]} 22. h4 {[%clk 0:00:28]}  h5 {[%clk 0:01:47]} 23. Qc3+ {[%clk 0:00:27]}  Qd4 {[%clk 0:01:46]} 24. Qb3 {[%clk 0:00:27]}  R4a7 {[%clk 0:01:34]} 25. Ra2 {[%clk 0:00:26]}  Rb8 {[%clk 0:01:27]} 26. a4 {[%clk 0:00:25]}  Rd7 {[%clk 0:01:18]} 27. Ra3 {[%clk 0:00:23]}  Rbb7 {[%clk 0:01:16]} 28. Qc2 {[%clk 0:00:23]}  Ra7 {[%clk 0:01:16]} 29. Rb1 {[%clk 0:00:23]}  Rd6 {[%clk 0:01:16]} 30. Rb5 {[%clk 0:00:23]}  e5 {[%clk 0:01:12]} 31. Qe2 {[%clk 0:00:22]}  Rf6 {[%clk 0:01:12]} 32. Kg2 {[%clk 0:00:19]}  Re7 {[%clk 0:00:59]} 33. Qe3 {[%clk 0:00:16]}  Qxe3 {[%clk 0:00:49]} 34. fxe3 {[%clk 0:00:16]}  e4 {[%clk 0:00:50]} 35. a5 {[%clk 0:00:15]}  bxa5 {[%clk 0:00:48]} 36. Rbxa5 {[%clk 0:00:15]}  exd3 {[%clk 0:00:38]} 37. Rxd3 {[%clk 0:00:15]}  Re5 {[%clk 0:00:34]} 38. Rb5 {[%clk 0:00:14]}  Kg8 {[%clk 0:00:24]} 39. Rb8+ {[%clk 0:00:13]}  Kg7 {[%clk 0:00:24]} 40. Rbd8 {[%clk 0:00:13]}  Re4 {[%clk 0:00:23]} 41. Rc3 {[%clk 0:00:13]}  Rf5 {[%clk 0:00:23]} 42. Rd5 {[%clk 0:00:12]}  Kf6 {[%clk 0:00:24]} 43. Rd6+ {[%clk 0:00:10]}  Ke7 {[%clk 0:00:24]} 44. Rc6 {[%clk 0:00:09]}  Kd7 {[%clk 0:00:21]} 45. Ra6 {[%clk 0:00:10]}  Ke7 {[%clk 0:00:21]} 46. Ra7+ {[%clk 0:00:10]}  Kf6 {[%clk 0:00:21]} 47. Rc7 {[%clk 0:00:10]}  Kg7 {[%clk 0:00:21]} 48. Rc6 {[%clk 0:00:11]}  Rg4 {[%clk 0:00:21]} 49. Rd3 {[%clk 0:00:08]}  g5 {[%clk 0:00:21]} 50. Rd5 {[%clk 0:00:06]}  Rxd5 {[%clk 0:00:21]} 51. cxd5 {[%clk 0:00:07]}  gxh4 {[%clk 0:00:20]} 52. Rxc5 {[%clk 0:00:06]}  Rxg3+ {[%clk 0:00:21]} 53. Kf2 {[%clk 0:00:06]}  Rg5 {[%clk 0:00:16]} 54. e4 {[%clk 0:00:07]}  h3 {[%clk 0:00:16]} 55. Rc3 {[%clk 0:00:07]}  Rg2+ {[%clk 0:00:14]} 56. Kf1 {[%clk 0:00:04]}  Rg4 {[%clk 0:00:09]} 57. Rxh3 {[%clk 0:00:04]}  Rxe4 {[%clk 0:00:09]} 58. Rxh5 {[%clk 0:00:04]}  Kg6 {[%clk 0:00:10]} 59. Rh3 {[%clk 0:00:04]}  Rd4 {[%clk 0:00:10]} 60. Rg3+ {[%clk 0:00:03]}  Kf6 {[%clk 0:00:11]} 61. Rf3+ {[%clk 0:00:04]}  Ke7 {[%clk 0:00:11]} 62. Rf5 {[%clk 0:00:04]}  Kd6 {[%clk 0:00:11]} 63. Kf2 {[%clk 0:00:04]}  Rxd5 {[%clk 0:00:11]} 64. Rxf7 {[%clk 0:00:04]}  Re5 {[%clk 0:00:12]} 65. Rf3 {[%clk 0:00:05]}  Ke6 {[%clk 0:00:12]} 66. Re3 {[%clk 0:00:06]}  Rxe3 {[%clk 0:00:13]} 67. Kxe3 {[%clk 0:00:07]} 1/2-1/2


[Site "https://www.chess.com"]

[Event "Titled Tuesday Blitz June 22 2021"]
[White "Shimelkov, Vasiliy"]
[Black "Indjic, Aleksandar"]
[WhiteFideId "13701630"]
[BlackFideId "911925"]
[WhiteElo "2073"]
[BlackElo "2643"]
[Result "0-1"]
[Round "05"]
[TimeControl "180+1"]
[Date "2021.06.22"]
[WhiteClock "0:00:07"]
[BlackClock "0:00:06"]

1. d4 {[%clk 0:03:00]}  Nf6 {[%clk 0:02:59]} 2. c4 {[%clk 0:03:00]}  c5 {[%clk 0:02:59]} 3. d5 {[%clk 0:03:00]}  e6 {[%clk 0:02:59]} 4. Nc3 {[%clk 0:02:57]}  exd5 {[%clk 0:02:59]} 5. cxd5 {[%clk 0:02:57]}  d6 {[%clk 0:03:00]} 6. h3 {[%clk 0:02:55]}  g6 {[%clk 0:02:56]} 7. Nf3 {[%clk 0:02:55]}  Qe7 {[%clk 0:02:54]} 8. Bf4 {[%clk 0:02:43]}  a6 {[%clk 0:02:54]} 9. a4 {[%clk 0:02:42]}  Bg7 {[%clk 0:02:53]} 10. Nd2 {[%clk 0:02:36]}  Nbd7 {[%clk 0:01:58]} 11. Nc4 {[%clk 0:02:28]}  Ne5 {[%clk 0:01:58]} 12. Bxe5 {[%clk 0:02:24]}  dxe5 {[%clk 0:01:59]} 13. e4 {[%clk 0:02:16]}  O-O {[%clk 0:01:57]} 14. Bd3 {[%clk 0:02:06]}  Ne8 {[%clk 0:01:54]} 15. O-O {[%clk 0:02:03]}  Nd6 {[%clk 0:01:53]} 16. Qe2 {[%clk 0:01:54]}  Bd7 {[%clk 0:01:49]} 17. Nd1 {[%clk 0:01:36]}  Bh6 {[%clk 0:01:22]} 18. b3 {[%clk 0:01:31]}  Rab8 {[%clk 0:01:15]} 19. Nb6 {[%clk 0:01:13]}  f5 {[%clk 0:01:02]} 20. Nb2 {[%clk 0:01:07]}  fxe4 {[%clk 0:00:54]} 21. Bxe4 {[%clk 0:01:06]}  Bf5 {[%clk 0:00:54]} 22. f3 {[%clk 0:01:02]}  Bf4 {[%clk 0:00:27]} 23. Nd3 {[%clk 0:00:55]}  Bxe4 {[%clk 0:00:18]} 24. fxe4 {[%clk 0:00:54]}  Rbe8 {[%clk 0:00:18]} 25. Nc4 {[%clk 0:00:36]}  b5 {[%clk 0:00:18]} 26. Nxd6 {[%clk 0:00:31]}  Qxd6 {[%clk 0:00:18]} 27. axb5 {[%clk 0:00:32]}  axb5 {[%clk 0:00:19]} 28. Nxf4 {[%clk 0:00:31]}  exf4 {[%clk 0:00:20]} 29. Qxb5 {[%clk 0:00:28]}  Rxe4 {[%clk 0:00:19]} 30. Ra7 {[%clk 0:00:23]}  Re7 {[%clk 0:00:15]} 31. Rxe7 {[%clk 0:00:22]}  Qxe7 {[%clk 0:00:16]} 32. Qc6 {[%clk 0:00:22]}  Qe3+ {[%clk 0:00:15]} 33. Kh1 {[%clk 0:00:21]}  f3 {[%clk 0:00:15]} 34. d6 {[%clk 0:00:19]}  f2 {[%clk 0:00:13]} 35. Qd5+ {[%clk 0:00:18]}  Kg7 {[%clk 0:00:12]} 36. d7 {[%clk 0:00:18]}  Qe2 {[%clk 0:00:10]} 37. Qc4 {[%clk 0:00:15]}  Qxc4 {[%clk 0:00:10]} 38. bxc4 {[%clk 0:00:16]}  Rd8 {[%clk 0:00:11]} 39. Rxf2 {[%clk 0:00:15]}  Rxd7 {[%clk 0:00:12]} 40. g3 {[%clk 0:00:13]}  Rd4 {[%clk 0:00:12]} 41. Rc2 {[%clk 0:00:13]}  Kf6 {[%clk 0:00:10]} 42. Kg2 {[%clk 0:00:13]}  Ke5 {[%clk 0:00:10]} 43. Kf3 {[%clk 0:00:13]}  Rd3+ {[%clk 0:00:10]} 44. Kf2 {[%clk 0:00:13]}  Kd4 {[%clk 0:00:11]} 45. Rc1 {[%clk 0:00:12]}  g5 {[%clk 0:00:06]} 46. Re1 {[%clk 0:00:09]}  Kxc4 {[%clk 0:00:06]} 47. Re5 {[%clk 0:00:08]}  Rd5 {[%clk 0:00:05]} 48. Re7 {[%clk 0:00:08]}  h5 {[%clk 0:00:05]} 49. Rh7 {[%clk 0:00:08]}  g4 {[%clk 0:00:06]} 50. hxg4 {[%clk 0:00:08]}  hxg4 {[%clk 0:00:06]} 51. Ke3 {[%clk 0:00:08]}  Rd4 {[%clk 0:00:07]} 52. Rg7 {[%clk 0:00:07]}  Kc3 {[%clk 0:00:06]} 53. Rc7 {[%clk 0:00:07]}  c4 {[%clk 0:00:07]} 54. Rc6 {[%clk 0:00:07]}  Rd8 {[%clk 0:00:05]} 55. Kf4 {[%clk 0:00:07]}  Rg8 {[%clk 0:00:05]} 56. Rc7 {[%clk 0:00:07]}  Kb3 {[%clk 0:00:06]} 57. Rb7+ {[%clk 0:00:07]}  Kc2 {[%clk 0:00:06]} 58. Ke3 {[%clk 0:00:07]}  c3 {[%clk 0:00:07]} 59. Rc7 {[%clk 0:00:07]}  Kb2 {[%clk 0:00:06]} 60. Kd3 {[%clk 0:00:07]}  Rd8+ {[%clk 0:00:05]} 61. Ke3 {[%clk 0:00:07]}  c2 {[%clk 0:00:05]} 62. Rb7+ {[%clk 0:00:07]}  Kc1 {[%clk 0:00:06]} 63. Rc7 {[%clk 0:00:07]}  Kd1 {[%clk 0:00:06]} 0-1


[Site "https://www.chess.com"]